fUSD/lending_fUSD_20260228
["ID","MTS","AMOUNT","RATE_DAILY","PERIOD"]
[406924676,1772279433258,-253.23994536,0.0001055,2]
[406924677,1772279433269,-150.0,0.0001055,2]
[406924678,1772279433279,-150.0,0.0001055,2]
[406924679,1772279433289,-214.55409961,0.0001055,2]
[406924680,1772279433299,-158.95668988,0.0001055,2]
[406924681,1772279433309,-150.0,0.0001055,2]
[406924682,1772279433319,-150.0,0.0001055,2]
[406924683,1772279433329,-55037.76324737,0.00010595,2]
[406924684,1772279433451,-138402.69126873,0.00010595,2]
[406924685,1772279433460,-150.0,0.00010605,2]
[406924686,1772279433469,-150.0,0.00010605,2]
[406924687,1772279433479,-150.0,0.00010605,2]
[406924688,1772279433487,-411.64,0.0001065,2]
[406924689,1772279433496,-736.0,0.0001065,2]
[406924690,1772279433505,-2710.0,0.0001065,2]
[406924691,1772279433515,-354.0,0.0001065,2]
[406924692,1772279433524,-200.0,0.0001066,2]
[406924693,1772279433533,-150.0,0.0001066,2]
[406924694,1772279433542,-200.0,0.0001066,2]
[406924695,1772279433551,-150.0,0.00010714,2]
[406924696,1772279433561,-259.17530453,0.00010733,2]
[406924697,1772279433570,-200.0,0.00010769,2]
[406924698,1772279433579,-1942.71,0.00010805,2]
[406924699,1772279433588,-4205.04951814,0.00010825,2]
[406924700,1772279433597,-166.66,0.00010959,2]
[406924701,1772279433607,-150.0,0.00010959,2]
[406924702,1772279433616,-150.0,0.00010959,2]
[406924703,1772279433625,-3083.02873024,0.00010995,2]
[406924704,1772279433635,-150.0,0.00011048,2]
[406924705,1772279433644,-6321.05891542,0.00011099,2]
[406924706,1772279433653,-150.0,0.00011103,2]
[406924707,1772279433663,-166.66,0.00011104,2]
[406924708,1772279433672,-4947.74966427,0.00011121,2]
[406924709,1772279433681,-38069.47566257,0.00011139,2]
[406924710,1772279433691,-985.6850891,0.00011149,2]
[406924711,1772279433704,-2271.99431415,0.00011149,2]
[406924712,1772279433714,-159.44219072,0.00011149,2]
[406924713,1772279433724,-4767.91759488,0.00011149,2]
[406924714,1772279433733,-150.0,0.00011158,2]
[406924715,1772279433743,-196.33713432,0.00011212,2]
[406924716,1772279433752,-258.06666908,0.00011212,2]
[406924717,1772279433762,-155.0,0.0001122,2]
[406924718,1772279433776,-500.0,0.00011221,2]
[406924719,1772279433785,-1939.30075915,0.00011221,2]
[406924720,1772279433794,-305.58220724,0.00011221,2]
[406924721,1772279433803,-161.08883825,0.00011221,2]
[406924722,1772279433813,-500.0,0.00011221,2]
[406924723,1772279433822,-259.96169612,0.00011221,2]
[406924724,1772279433831,-500.0,0.00011221,2]
[406924725,1772279433840,-500.0,0.00011221,2]
[406924726,1772279433850,-1939.30075915,0.00011221,2]
[406924727,1772279433859,-500.0,0.00011221,2]
[406924728,1772279433869,-500.0,0.00011221,2]
[406924729,1772279433878,-1939.30075915,0.00011221,2]
[406924730,1772279433887,-169.78300591,0.00011221,2]
[406924731,1772279433897,-500.0,0.00011221,2]
[406924732,1772279433906,-500.0,0.00011221,2]
[406924733,1772279433915,-500.0,0.00011221,2]
[406924734,1772279433924,-1939.30075915,0.00011221,2]
[406924735,1772279433933,-316.7905715,0.00011221,2]
[406924736,1772279433943,-500.0,0.00011221,2]
[406924737,1772279433952,-500.0,0.00011221,2]
[406924738,1772279433962,-1939.30075915,0.00011221,2]
[406924739,1772279433971,-500.0,0.00011221,2]
[406924740,1772279433981,-1939.30075915,0.00011221,2]
[406924741,1772279433990,-590.38354289,0.00011221,2]
[406924742,1772279433999,-1939.30075915,0.00011221,2]
[406924743,1772279434008,-500.0,0.00011221,2]
[406924744,1772279434017,-1939.30075915,0.00011221,2]
[406924745,1772279434027,-500.0,0.00011221,2]
[406924746,1772279434036,-1939.30075915,0.00011221,2]
[406924747,1772279434045,-1939.30075915,0.00011221,2]
[406924748,1772279434054,-1939.30075915,0.00011221,2]
[406924749,1772279434063,-1939.30075915,0.00011221,2]
[406924750,1772279434072,-1939.30075915,0.00011221,2]
[406924751,1772279434082,-1939.30075915,0.00011221,2]
[406924752,1772279434092,-1939.30075915,0.00011221,2]
[406924753,1772279434102,-1939.30075915,0.00011221,2]
[406924754,1772279434112,-1939.30075915,0.00011221,2]
[406924755,1772279434121,-1939.30075915,0.00011221,2]
[406924756,1772279434130,-1939.30075915,0.00011221,2]
[406924757,1772279434144,-1939.30075915,0.00011221,2]
[406924758,1772279434153,-1939.30075915,0.00011221,2]
[406924759,1772279434163,-1939.30075915,0.00011221,2]
[406924760,1772279434172,-1939.30075915,0.00011221,2]
[406924761,1772279434182,-1939.30075915,0.00011221,2]
[406924762,1772279434191,-1939.30075915,0.00011221,2]
[406924763,1772279434201,-1939.30075915,0.00011221,2]
[406924764,1772279434211,-1939.30075915,0.00011221,2]
[406924765,1772279434220,-1939.30075915,0.00011221,2]
[406924766,1772279434231,-1939.30075915,0.00011221,2]
[406924767,1772279434240,-1939.30075915,0.00011221,2]
[406924768,1772279434249,-1939.30075915,0.00011221,2]
[406924769,1772279434260,-1939.30075915,0.00011221,2]
[406924770,1772279434269,-1939.30075915,0.00011221,2]
[406924771,1772279434279,-1939.30075915,0.00011221,2]
[406924772,1772279434288,-500.0,0.00011221,2]
[406924773,1772279434298,-1939.30075915,0.00011221,2]
[406924774,1772279434307,-1939.30075915,0.00011221,2]
[406924775,1772279434317,-1939.30075915,0.00011221,2]
[406924776,1772279434326,-1939.30075915,0.00011221,2]
[406924777,1772279434336,-1939.30075915,0.00011221,2]
[406924778,1772279434346,-1939.30075915,0.00011221,2]
[406924779,1772279434355,-1939.30075915,0.00011221,2]
[406924780,1772279434364,-1939.30075915,0.00011221,2]
[406924781,1772279434375,-1939.30075915,0.00011221,2]
[406924782,1772279434387,-1939.30075915,0.00011221,2]
[406924783,1772279434396,-1939.30075915,0.00011221,2]
[406924784,1772279434406,-1939.30075915,0.00011221,2]
[406924785,1772279434416,-683.56005055,0.00011221,2]
[406924786,1772279434429,-1254.41808677,0.00011221,2]
[406924789,1772279438098,-1.32262183,0.00011221,2]
[406924790,1772279438109,-592.09077933,0.00011221,2]
[406924791,1772279438121,-1347.20997982,0.00011221,2]
[406924792,1772279438131,-1939.30075915,0.00011221,2]
[406924793,1772279438141,-1939.30075915,0.00011221,2]
[406924794,1772279438151,-1939.30075915,0.00011221,2]
[406924795,1772279438161,-1939.30075915,0.00011221,2]
[406924796,1772279438171,-1939.30075915,0.00011221,2]
[406924797,1772279438181,-1939.30075915,0.00011221,2]
[406924798,1772279438190,-1939.30075915,0.00011221,2]
[406924799,1772279438201,-1939.30075915,0.00011221,2]
[406924800,1772279438210,-1939.30075915,0.00011221,2]
[406924801,1772279438220,-1939.30075915,0.00011221,2]
[406924802,1772279438229,-3987.05869026,0.00011221,2]
[406924803,1772279438238,-3987.05869026,0.00011221,2]
[406924804,1772279438248,-3987.05869026,0.00011221,2]
[406924805,1772279438258,-3987.05869026,0.00011221,2]
[406924806,1772279438267,-3987.05869026,0.00011221,2]
[406924807,1772279438277,-3987.05869026,0.00011221,2]
[406924808,1772279438286,-3987.05869026,0.00011221,2]
[406924809,1772279438296,-3987.05869026,0.00011221,2]
[406924810,1772279438305,-3987.05869026,0.00011221,2]
[406924811,1772279438315,-3987.05869026,0.00011221,2]
[406924812,1772279438324,-3987.05869026,0.00011221,2]
[406924813,1772279438333,-3987.05869026,0.00011221,2]
[406924814,1772279438343,-3987.05869026,0.00011221,2]
[406924815,1772279438352,-3987.05869026,0.00011221,2]
[406924816,1772279438362,-3987.05869026,0.00011221,2]
[406924817,1772279438372,-3987.05869026,0.00011221,2]
[406924818,1772279438381,-3987.05869026,0.00011221,2]
[406924819,1772279438390,-3987.05869026,0.00011221,2]
[406924820,1772279438400,-3987.05869026,0.00011221,2]
[406924821,1772279438409,-3987.05869026,0.00011221,2]
[406924822,1772279438418,-3987.05869026,0.00011221,2]
[406924823,1772279438428,-3987.05869026,0.00011221,2]
[406924824,1772279438437,-1422.62064738,0.00011221,2]
[406924825,1772279438448,-634.79356952,0.00011221,2]
[406924826,1772279438458,-375.21990653,0.00011221,2]
[406924827,1772279438470,-525.86462713,0.00011221,2]
[406924828,1772279438485,-1028.5599397,0.00011221,2]
[406924829,1772279438494,-215.8170603,0.00011221,2]
[406924830,1772279438504,-3771.24162996,0.00011221,2]
[406924831,1772279438513,-3987.05869026,0.00011221,2]
[406924832,1772279438522,-3987.05869026,0.00011221,2]
[406924834,1772279438531,-3987.05869026,0.00011221,2]
[406924835,1772279438539,-3987.05869026,0.00011221,2]
[406924836,1772279438548,-3987.05869026,0.00011221,2]
[406924837,1772279438556,-3987.05869026,0.00011221,2]
[406924838,1772279438564,-3987.05869023,0.00011221,2]
[406924839,1772279438573,-3987.05869023,0.00011221,2]
[406924840,1772279438581,-1231.52357758,0.00011221,2]
[406924841,1772279438595,-1176.555,0.00011221,2]
[406924842,1772279438607,-1276.78651,0.00011221,2]
[406924843,1772279438622,-302.19360265,0.00011221,2]
[406924844,1772279438632,-697.80639735,0.00011221,2]
[406924852,1772279440300,-3289.25229287,0.00011221,2]
[406924853,1772279440310,-172576.40548739,0.00011222,2]
[406924854,1772279440328,-547.03466666,0.00011222,2]
[406924866,1772279443137,-623.16483502,0.00011222,2]
[406924867,1772279443150,-944.67908195,0.00011222,2]
[406924868,1772279443162,-4939.51232533,0.00011222,2]
[406924869,1772279443174,-553.09022308,0.00011222,2]
[406924870,1772279443190,-13268.32015708,0.00011222,2]
[406924871,1772279443246,-1030.1308482,0.00011222,2]
[406924872,1772279443257,-1208.45596407,0.00011222,2]
[406924873,1772279443352,-985.6128,0.00011222,2]
[406924874,1772279443364,-2509.07303865,0.00011222,2]
[406924886,1772279446079,-5365.65333,0.00011222,2]
[406924887,1772279446342,-1077.78,0.00011222,2]
[406924888,1772279446354,-1861.7529337,0.00011222,2]
[406924901,1772279611709,159.0,5.834e-05,2]
[406924902,1772279611908,159.0,6.788e-05,2]
[406924903,1772279612315,159.0,7.743e-05,2]
[406924907,1772280406764,23.0,4.7e-07,2]
[406924908,1772280406793,149.0,4.7e-07,2]
[406924924,1772280637186,-159.0,8.698e-05,2]
[406924925,1772280637195,-195.0,8.85e-05,2]
[406924926,1772280637205,-480.0,9.002e-05,2]
[406924927,1772280637215,-150.0,9.002e-05,2]
[406924928,1772280637224,-466.0,9.002e-05,2]
[406924929,1772280637234,-500.0,9.003e-05,2]
[406924930,1772280637243,-500.0,9.003e-05,2]
[406924931,1772280637252,-700.0,9.003e-05,2]
[406924932,1772280637262,-500.0,9.003e-05,2]
[406924933,1772280637271,-500.0,9.003e-05,2]
[406924934,1772280637280,-500.0,9.003e-05,2]
[406924935,1772280637290,-500.0,9.003e-05,2]
[406924936,1772280637299,-500.0,9.003e-05,2]
[406924937,1772280637310,-500.0,9.003e-05,2]
[406924938,1772280637320,-500.0,9.003e-05,2]
[406924939,1772280637329,-500.0,9.003e-05,2]
[406924940,1772280637339,-500.0,9.003e-05,2]
[406924941,1772280637349,-500.0,9.003e-05,2]
[406924943,1772280637358,-600.0,9.003e-05,2]
[406924945,1772280637367,-500.0,9.003e-05,2]
[406924946,1772280637376,-500.0,9.003e-05,2]
[406924948,1772280637385,-500.0,9.003e-05,2]
[406924949,1772280637394,-500.0,9.003e-05,2]
[406924950,1772280637404,-500.0,9.003e-05,2]
[406924951,1772280637413,-500.0,9.003e-05,2]
[406924952,1772280637423,-524.54692893,9.003e-05,2]
[406924953,1772280637431,-500.0,9.003e-05,2]
[406924954,1772280637441,-500.0,9.003e-05,2]
[406924955,1772280637451,-195.0,9.185e-05,2]
[406924956,1772280637467,-195.0,9.568e-05,2]
[406924957,1772280637477,-333.37535612,9.568e-05,2]
[406924958,1772280637486,-159.0,9.652e-05,2]
[406924959,1772280637495,-255.0,9.902e-05,2]
[406924960,1772280637505,-152.06,9.956e-05,2]
[406924961,1772280637514,-1625.07594776,0.0001,2]
[406924962,1772280637524,-894.89582512,0.0001,2]
[406924963,1772280637533,-166.68,0.00010168,2]
[406924964,1772280637543,-308.53510128,0.00010222,2]
[406924965,1772280637552,-689.0,0.0001025,2]
[406924966,1772280637561,-992.0,0.00010333,2]
[406924967,1772280637570,-160.343373,0.000104,2]
[406924968,1772280637579,-1617.53428289,0.00010481,2]
[406924969,1772280637591,-351.5299975,0.00010481,2]
[406924970,1772280637602,-2030.93571961,0.00010481,2]
[406924971,1772280637612,-7669.92,0.00010492,2]
[406924972,1772280637621,-299.99,0.00010607,2]
[406924973,1772280637630,-150.99,0.00010607,2]
[406924974,1772280637640,-659.5,0.00010607,2]
[406924975,1772280637649,-150.99,0.00010607,2]
[406924976,1772280637659,-9999.99,0.00010607,2]
[406924977,1772280637668,-159.0,0.00010607,2]
[406924978,1772280637677,-1000.0,0.00010607,2]
[406924979,1772280637686,-500.0,0.00010607,2]
[406924980,1772280637696,-4000.0,0.00010743,2]
[406924981,1772280637705,-152.06,0.00010786,2]
[406924982,1772280637715,-500.0,0.00010881,2]
[406924983,1772280637724,-290.0,0.00010892,2]
[406924984,1772280637734,-150.0,0.00010938,2]
[406924985,1772280637743,-500.0,0.00010938,2]
[406924986,1772280637752,-150.0,0.00010938,2]
[406924987,1772280637762,-150.0,0.00010938,2]
[406924988,1772280637772,-150.0,0.00010938,2]
[406924989,1772280637782,-150.0,0.00010947,2]
[406924990,1772280637791,-150.0,0.00010947,2]
[406924991,1772280637800,-150.0,0.00010947,2]
[406924992,1772280637809,-150.0,0.00010947,2]
[406924993,1772280637818,-170.96140001,0.00010947,2]
[406924994,1772280637827,-150.0,0.00010947,2]
[406924995,1772280637837,-155.59923113,0.00010947,2]
[406924996,1772280637846,-150.0,0.00010947,2]
[406924997,1772280637856,-150.0,0.00010947,2]
[406924998,1772280637865,-153.47951727,0.00010947,2]
[406924999,1772280637874,-150.0,0.00010947,2]
[406925000,1772280637883,-200.0,0.00010993,2]
[406925001,1772280637892,-500.0,0.00010993,2]
[406925002,1772280637901,-150.0,0.00010993,2]
[406925003,1772280637911,-150.0,0.00011002,2]
[406925004,1772280637920,-150.0,0.00011002,2]
[406925005,1772280637929,-150.0,0.00011002,2]
[406925006,1772280637938,-150.0,0.00011002,2]
[406925007,1772280637947,-4000.0,0.00011005,2]
[406925008,1772280637955,-500.0,0.00011048,2]
[406925009,1772280637964,-200.0,0.00011048,2]
[406925010,1772280637974,-200.0,0.00011057,2]
[406925011,1772280637983,-200.0,0.00011057,2]
[406925012,1772280637992,-200.0,0.00011057,2]
[406925013,1772280638002,-200.0,0.00011057,2]
[406925014,1772280638010,-3644.05,0.0001108,2]
[406925015,1772280638021,-150.0,0.00011102,2]
[406925016,1772280638030,-20472.23292548,0.0001111,2]
[406925022,1772280638214,-500.0,0.0001111,2]
[406925025,1772280638270,-13408.99150576,0.0001111,2]
[406925026,1772280638281,-643.18433373,0.0001111,2]
[406925027,1772280638294,-535.13915653,0.0001111,2]
[406925028,1772280638305,-353.45409513,0.0001111,2]
[406925029,1772280638325,-500.0,0.0001111,2]
[406925030,1772280638434,-3469.63673085,0.0001111,2]
[406925147,1772280640338,-19874.49939236,0.0001111,2]
[406925150,1772280640395,-1048.02066522,0.0001111,2]
[406925151,1772280640406,-1278.84,0.0001111,2]
[406925152,1772280640450,-326.37913478,0.0001111,2]
[406925153,1772280640876,-77746.49848454,0.0001111,2]
[406925154,1772280640886,-615.50826306,0.00011122,2]
[406925155,1772280640895,-6591.9614404,0.00011122,2]
[406925156,1772280640905,-483.7322155,0.00011155,2]
[406925157,1772280640915,-518.50594974,0.00011211,2]
[406925158,1772280640924,-1000.0,0.00011214,2]
[406925159,1772280640934,-151.0,0.00011215,2]
[406925160,1772280640943,-151.0,0.00011215,2]
[406925161,1772280640953,-151.0,0.00011215,2]
[406925162,1772280640962,-151.0,0.00011215,2]
[406925164,1772280640971,-151.0,0.00011215,2]
[406925166,1772280640980,-151.0,0.00011215,2]
[406925168,1772280640989,-151.0,0.00011215,2]
[406925169,1772280641006,-151.0,0.00011215,2]
[406925171,1772280641015,-151.0,0.00011215,2]
[406925172,1772280641024,-151.0,0.00011215,2]
[406925173,1772280641034,-151.0,0.00011215,2]
[406925174,1772280641043,-500.0,0.00011215,2]
[406925175,1772280641052,-151.0,0.00011215,2]
[406925176,1772280641061,-500.0,0.00011215,2]
[406925177,1772280641071,-215.18450189,0.00011215,2]
[406925178,1772280641080,-500.0,0.00011215,2]
[406925179,1772280641089,-500.0,0.00011215,2]
[406925180,1772280641098,-500.0,0.00011215,2]
[406925181,1772280641107,-500.0,0.00011215,2]
[406925182,1772280641117,-500.0,0.00011215,2]
[406925183,1772280641126,-500.0,0.00011215,2]
[406925184,1772280641136,-500.0,0.00011215,2]
[406925185,1772280641148,-500.0,0.00011215,2]
[406925186,1772280641158,-500.0,0.00011215,2]
[406925187,1772280641167,-500.0,0.00011215,2]
[406925188,1772280641177,-500.0,0.00011215,2]
[406925189,1772280641187,-500.0,0.00011215,2]
[406925190,1772280641197,-151.0,0.00011219,2]
[406925191,1772280641206,-224.27040434,0.00011222,2]
[406925192,1772280641217,-361043.6447921,0.00011222,2]
[406925193,1772280641226,-27834.789923,0.00011222,2]
[406925194,1772280641236,-219.4686,0.00011222,2]
[406925195,1772280641245,-151.0,0.00011222,2]
[406925196,1772280641255,-166.66,0.00011249,2]
[406925197,1772280641265,-4000.0,0.00011267,2]
[406925198,1772280641275,-1600.0,0.00011377,2]
[406925199,1772280641284,-166.66,0.00011394,2]
[406925200,1772280641293,-180.0474554,0.00011396,2]
[406925201,1772280641303,-401.81375228,0.00011396,2]
[406925202,1772280641312,-228.53277993,0.0001149,2]
[406925203,1772280641321,-250.0,0.00011493,2]
[406925204,1772280641330,-1677.83868287,0.00011502,2]
[406925205,1772280641339,-890.28,0.00011507,2]
[406925206,1772280641348,-4000.0,0.00011529,2]
[406925207,1772280641358,-166.66,0.00011539,2]
[406925208,1772280641367,-266.52,0.00011569,2]
[406925209,1772280641376,-152.06,0.00011616,2]
[406925210,1772280641385,-151.0,0.0001163,2]
[406925211,1772280641394,-151.0,0.0001163,2]
[406925212,1772280641403,-668.65185757,0.0001163,2]
[406925213,1772280641412,-269.917619,0.0001163,2]
[406925214,1772280641422,-174.61919141,0.0001163,2]
[406925215,1772280641431,-267.46074303,0.0001163,2]
[406925216,1772280641440,-500.0,0.0001163,2]
[406925217,1772280641450,-500.0,0.0001163,2]
[406925218,1772280641459,-500.0,0.0001163,2]
[406925219,1772280641469,-500.0,0.0001163,2]
[406925220,1772280641478,-500.0,0.0001163,2]
[406925221,1772280641487,-500.0,0.0001163,2]
[406925222,1772280641497,-500.0,0.0001163,2]
[406925223,1772280641506,-500.0,0.0001163,2]
[406925224,1772280641515,-500.0,0.0001163,2]
[406925225,1772280641524,-500.0,0.0001163,2]
[406925226,1772280641534,-500.0,0.0001163,2]
[406925227,1772280641543,-500.0,0.0001163,2]
[406925228,1772280641553,-166.66,0.00011684,2]
[406925229,1772280641562,-151.0,0.00011685,2]
[406925230,1772280641571,-693.3919763,0.00011685,2]
[406925231,1772280641580,-151.0,0.0001174,2]
[406925232,1772280641589,-719.04747942,0.0001174,2]
[406925233,1772280641598,-151.0,0.00011795,2]
[406925234,1772280641607,-745.65223616,0.00011795,2]
[406925235,1772280641618,-2470.24199532,0.000118,2]
[406925236,1772280641628,-5928.01688748,0.000118,2]
[406925237,1772280641637,-1262.49003231,0.000118,2]
[406925238,1772280641647,-1254.01716435,0.000118,2]
[406925239,1772280641656,-166.68,0.00011846,2]
[406925240,1772280641665,-151.0,0.0001185,2]
[406925241,1772280641675,-773.2413689,0.0001185,2]
[406925242,1772280641684,-586.24041249,0.00011856,2]
[406925243,1772280641693,-6591.96144034,0.00011875,2]
[406925244,1772280641703,-151.0,0.00011905,2]
[406925245,1772280641713,-801.85129955,0.00011905,2]
[406925246,1772280641722,-1000.0,0.00011933,2]
[406925247,1772280641731,-151.0,0.0001196,2]
[406925248,1772280641740,-831.51979763,0.0001196,2]
[406925249,1772280641749,-500.0,0.00011979,2]
[406925250,1772280641759,-500.0,0.00011979,2]
[406925251,1772280641768,-500.0,0.00011979,2]
[406925252,1772280641777,-10000.0,0.00011999,2]
[406925253,1772280641787,-22939.65228733,0.00012,7]
[406925254,1772280641796,-151.0,0.00012015,2]
[406925255,1772280641806,-862.28603014,0.00012015,2]
[406925256,1772280641816,-253.2864,0.0001207,2]
[406925257,1772280641825,-500.0,0.0001207,2]
[406925258,1772280641835,-500.0,0.0001207,2]
[406925259,1772280641844,-500.0,0.0001207,2]
[406925260,1772280641854,-500.0,0.0001207,2]
[406925261,1772280641864,-500.0,0.0001207,2]
[406925262,1772280641873,-500.0,0.0001207,2]
[406925263,1772280641882,-500.0,0.0001207,2]
[406925264,1772280641892,-500.0,0.0001207,2]
[406925265,1772280641901,-500.0,0.0001207,2]
[406925266,1772280641911,-500.0,0.0001207,2]
[406925267,1772280641925,-500.0,0.0001207,2]
[406925268,1772280641934,-500.0,0.0001207,2]
[406925269,1772280641943,-500.0,0.0001207,2]
[406925270,1772280641953,-500.0,0.0001207,2]
[406925271,1772280641962,-500.0,0.0001207,2]
[406925272,1772280641972,-500.0,0.0001207,2]
[406925273,1772280641982,-500.0,0.0001207,2]
[406925274,1772280641991,-500.0,0.0001207,2]
[406925275,1772280642133,-500.0,0.0001207,2]
[406925276,1772280642149,-500.0,0.0001207,2]
[406925277,1772280642159,-500.0,0.0001207,2]
[406925278,1772280642168,-500.0,0.0001207,2]
[406925279,1772280642177,-500.0,0.0001207,2]
[406925280,1772280642192,-500.97875071,0.0001207,2]
[406925281,1772280642202,-500.0,0.0001207,2]
[406925282,1772280642212,-500.0,0.0001207,2]
[406925283,1772280642223,-500.0,0.0001207,2]
[406925284,1772280642232,-500.0,0.0001207,2]
[406925285,1772280642241,-500.0,0.0001207,2]
[406925286,1772280642251,-500.0,0.0001207,2]
[406925287,1772280642262,-500.0,0.0001207,2]
[406925288,1772280642272,-500.0,0.0001207,2]
[406925289,1772280642282,-500.0,0.0001207,2]
[406925290,1772280642291,-500.0,0.0001207,2]
[406925291,1772280642300,-500.0,0.0001207,2]
[406925292,1772280642309,-500.0,0.0001207,2]
[406925293,1772280642319,-500.0,0.0001207,2]
[406925294,1772280642328,-500.0,0.0001207,2]
[406925295,1772280642338,-151.0,0.0001207,2]
[406925296,1772280642348,-894.19061326,0.0001207,2]
[406925297,1772280642358,-151.0,0.00012125,2]
[406925298,1772280642367,-927.27566595,0.00012125,2]
[406925299,1772280642377,-350.0,0.00012129,2]
[406925300,1772280642386,-156.84976398,0.00012178,2]
[406925301,1772280642396,-300.24799193,0.00012178,2]
[406925302,1772280642405,-194.24097533,0.00012178,2]
[406925303,1772280642414,-277.35679052,0.00012178,2]
[406925304,1772280642424,-227.69616285,0.0001218,2]
[406925305,1772280642434,-961.58486559,0.0001218,2]
[406925306,1772280642443,-350.0,0.00012194,2]
[406925307,1772280642453,-997.16350561,0.00012235,2]
[406925308,1772280642462,-615.50826305,0.00012252,2]
[406925309,1772280642472,-350.0,0.00012266,2]
[406925310,1772280642481,-350.0,0.00012288,2]
[406925311,1772280642491,-350.0,0.00012346,2]
[406925312,1772280642500,-219.4686,0.00012389,2]
[406925313,1772280642509,-350.0,0.00012408,2]
[406925314,1772280642519,-350.0,0.00012408,2]
[406925315,1772280642528,-152.06,0.00012446,2]
[406925316,1772280642539,-2451.03607329,0.000125,3]
[406925317,1772280642548,-2422.54596289,0.000125,3]
[406925318,1772280642558,-4676.87294012,0.000125,3]
[406925319,1772280642568,-166.66,0.00012566,2]
[406925320,1772280642578,-6591.96144034,0.00012628,2]
[406925321,1772280642587,-287.61899177,0.00012726,2]
[406925322,1772280642597,-1600.0,0.00012799,2]
[406925323,1772280642606,-350.0,0.00012849,2]
[406925324,1772280642616,-60000.0,0.000129,2]
[406925325,1772280642626,-80559.726283,0.0001291,2]
[406925326,1772280642635,-166.66,0.00012955,2]
[406925327,1772280642645,-456.97377821,0.00013,15]
[406925328,1772280642655,-350.0,0.00013047,2]
[406925329,1772280642664,-4683.16579743,0.00013059,2]
[406925330,1772280642674,-350.0,0.00013091,2]
[406925331,1772280642683,-100000.0,0.000131,2]
[406925332,1772280642693,-151.0,0.000131,2]
[406925333,1772280642702,-199.425737,0.000131,2]
[406925334,1772280642711,-186.246657,0.000131,2]
[406925335,1772280642721,-155.983782,0.000131,2]
[406925336,1772280642731,-212.463246,0.000131,2]
[406925337,1772280642740,-212.463246,0.000131,2]
[406925338,1772280642749,-212.463246,0.000131,2]
[406925339,1772280642759,-212.463246,0.000131,2]
[406925340,1772280642768,-1000.0,0.00013259,2]
[406925341,1772280642778,-277.35679052,0.00013274,2]
[406925342,1772280642787,-152.06,0.00013275,2]
[406925343,1772280642797,-17975.304627,0.00013287,2]
[406925344,1772280642806,-166.66,0.00013344,2]
[406925345,1772280642816,-615.50826305,0.00013381,2]
[406925346,1772280642826,-6591.96144034,0.00013381,2]
[406925347,1772280642836,-350.0,0.00013393,2]
[406925348,1772280642845,-350.0,0.00013419,2]
[406925349,1772280642855,-3240.0,0.00013425,2]
[406925350,1772280642865,-843.93369988,0.00013544,2]
[406925351,1772280642874,-219.4686,0.00013557,2]
[406925352,1772280642883,-150.0,0.00013665,2]
[406925353,1772280642893,-196.33713432,0.00013689,2]
[406925354,1772280642902,-500.0,0.00013698,2]
[406925355,1772280642912,-500.0,0.00013698,2]
[406925356,1772280642922,-500.0,0.00013698,2]
[406925357,1772280642932,-500.0,0.00013698,2]
[406925358,1772280642942,-500.0,0.00013698,2]
[406925359,1772280642952,-500.0,0.00013698,2]
[406925360,1772280642961,-500.0,0.00013698,2]
[406925361,1772280642971,-500.0,0.00013698,2]
[406925362,1772280642980,-500.0,0.00013698,2]
[406925363,1772280642989,-500.0,0.00013698,2]
[406925364,1772280642999,-500.0,0.00013698,2]
[406925365,1772280643008,-500.0,0.00013698,2]
[406925366,1772280643018,-500.0,0.00013698,2]
[406925367,1772280643027,-500.0,0.00013698,2]
[406925369,1772280643037,-500.0,0.00013698,2]
[406925370,1772280643046,-500.0,0.00013698,2]